bitfinex/quotes_SOLUSD_20250724
["timestamp","ask_amount","ask_price","bid_price","bid_amount"]
[1753329508576,37.26,190.15,190.13,3.97593001]
[1753329508774,37.26,190.15,190.14,0.67]
[1753329508979,37.26,190.15,190.14,4.64593001]
[1753329509373,0.52523767,190.19,190.14,9.90521264]
[1753329509577,0.52523767,190.22,190.18,3.97593001]
[1753329509875,0.52523767,190.22,190.19,0.67]
[1753329510085,0.52523767,190.22,190.14,5.25928263]
[1753329510086,37.28,190.21,190.2,4.64593001]
[1753329511556,37.28,190.21,190.2,9.90355356]
[1753329511758,37.28,190.23,190.2,13.87948357]
[1753329511985,37.28,190.23,190.22,3.97593001]
[1753329512281,37.28,190.23,190.22,4.64593001]
[1753329512662,0.03,190.25,190.22,4.64593001]
[1753329512870,0.03,190.25,190.24,3.97593001]
[1753329513062,37.31,190.25,190.24,3.97593001]
[1753329513384,37.31,190.25,190.24,4.64593001]
[1753329515492,0.03,190.25,190.24,4.64593001]
[1753329515787,0.03,190.25,190.24,9.90244809]
[1753329518292,0.03,190.25,190.24,5.92651808]
[1753329518460,0.03,190.25,190.24,4.64593001]
[1753329518879,0.03,190.25,190.24,9.90244809]
[1753329523168,0.03,190.25,190.24,26.68713206]
[1753329523372,0.03,190.29,190.26,6.4185]
[1753329523593,0.03,190.29,190.28,3.97593001]
[1753329523891,0.03,190.29,190.28,4.50147131]
[1753329524096,0.03,190.29,190.28,14.40281439]
[1753329525585,0.03,190.29,190.28,15.90411439]
[1753329526784,0.03,190.29,190.28,120.88879836]
[1753329527092,0.03,190.33,190.32,3.97593001]
[1753329527597,0.03,190.33,190.32,4.64593001]
[1753329527894,0.03,190.33,190.32,0.67]
[1753329528197,0.03,190.33,190.32,9.90023854]
[1753329528904,0.03,190.33,190.32,5.92430853]
[1753329529073,0.03,190.33,190.32,9.90023854]
[1753329529712,0.03,190.33,190.32,3.97593001]
[1753329530071,0.68,190.33,190.28,3.97593001]
[1753329530396,0.65,190.32,190.28,3.97593001]
[1753329530698,0.65,190.31,190.28,3.97593001]
[1753329531072,1.17523767,190.3,190.26,3.97593001]
[1753329531300,0.69,190.29,190.26,3.97593001]
[1753329532498,5.25458462,190.31,190.23,5.926743]
[1753329532688,4.66593001,190.29,190.2,0.73]
[1753329532996,3.97593001,190.27,190.21,3.97593001]
[1753329533295,1.21523767,190.26,190.21,3.97593001]
[1753329533494,0.69,190.26,190.21,3.97593001]
[1753329533679,0.69,190.26,190.22,3.97593001]
[1753329535294,5.94615733,190.26,190.2,0.73]
[1753329535602,5.94615733,190.26,190.22,3.97593001]
[1753329536784,5.25615733,190.26,190.22,3.97593001]
[1753329537105,0.69,190.25,190.22,3.97593001]
[1753329537305,5.94638398,190.25,190.22,3.97593001]
[1753329537683,5.25598663,190.26,190.22,3.97593001]
[1753329538483,5.94598663,190.26,190.22,3.97593001]
[1753329539278,5.19116768,190.25,190.2,0.06]
[1753329539491,3.97593001,190.23,190.2,0.06]
[1753329539912,0.69,190.22,190.2,0.06]
[1753329540099,4.66593001,190.22,190.2,0.06]
[1753329540291,37.22,190.23,190.2,4.03593001]
[1753329540490,37.91,190.23,190.2,4.03593001]
[1753329540692,37.91,190.23,190.2,0.06]
[1753329541290,42.47682703,190.23,190.2,0.06]
[1753329541593,37.22,190.23,190.2,4.03593001]
[1753329541998,37.22,190.23,190.21,3.97593001]
[1753329542299,37.22,190.23,190.2,0.06]
[1753329542498,37.22,190.23,190.2,4.03593001]
[1753329542702,37.22,190.23,190.22,3.97593001]
[1753329542900,37.2,190.25,190.22,3.97593001]
[1753329543097,37.2,190.25,190.23,3.97593001]
[1753329543506,37.89,190.25,190.22,3.97593001]
[1753329543900,37.2,190.25,190.23,3.97593001]
[1753329545718,37.2,190.25,190.24,3.97593001]
[1753329546508,63.2,190.29,190.24,4.64593001]
[1753329546709,37.2,190.29,190.26,3.97593001]
[1753329547006,37.89,190.29,190.26,3.97593001]
[1753329547205,0.69,190.28,190.26,3.97593001]
[1753329547407,37.2,190.29,190.27,3.97593001]
[1753329547618,37.2,190.29,190.28,3.97593001]
[1753329547796,5.25484977,190.31,190.28,3.97593001]
[1753329548192,5.94484977,190.31,190.28,3.97593001]
[1753329549695,5.19116768,190.3,190.24,3.97593001]
[1753329549896,37.91,190.29,190.24,3.97593001]
[1753329550219,5.19116768,190.28,190.23,3.97593001]
[1753329550393,0.69,190.27,190.23,3.97593001]
[1753329550594,0.69,190.26,190.23,3.97593001]
[1753329550805,5.25568928,190.27,190.23,3.97593001]
[1753329551011,5.94568928,190.27,190.23,3.97593001]
[1753329551410,5.94568928,190.27,190.24,3.97593001]
[1753329552599,5.94596942,190.26,190.23,3.97593001]
[1753329553295,0.52523767,190.28,190.25,3.97593001]
[1753329553628,0.69,190.28,190.23,0.67]
[1753329553808,0.69,190.27,190.24,3.97593001]
[1753329554010,0.69,190.26,190.24,3.97593001]
[1753329554312,0.69,190.26,190.23,3.97593001]
[1753329554511,0.69,190.26,190.24,3.97593001]
[1753329555095,5.9454131,190.28,190.25,3.97593001]
[1753329555298,37.22,190.29,190.26,3.97593001]
[1753329555993,0.69,190.28,190.26,3.97593001]
[1753329558027,42.47519249,190.29,190.26,3.97593001]
[1753329558428,43.16519249,190.29,190.26,3.97593001]
[1753329558609,0.69,190.28,190.25,3.97593001]
[1753329559204,0.69,190.28,190.23,5.25672944]
[1753329559405,5.94546413,190.28,190.23,0.67]
[1753329559620,5.25546413,190.28,190.2,93.51746948]
[1753329559918,0.69,190.27,190.23,3.97593001]
[1753329560116,0.69,190.27,190.2,88.26]
[1753329560414,0.69,190.27,190.2,4.03593001]
[1753329560415,41.64116768,190.26,190.2,4.03593001]
[1753329560615,0.69,190.25,190.2,4.03593001]
[1753329560809,0.69,190.24,190.2,4.03593001]
[1753329561297,37.82,190.26,190.23,3.97593001]
[1753329561500,37.14,190.26,190.23,3.97593001]
[1753329562421,43.07600519,190.26,190.23,3.97593001]
[1753329563207,37.14,190.26,190.23,3.97593001]
[1753329563410,37.14,190.26,190.23,4.64593001]
[1753329563798,5.93458462,190.31,190.25,3.97593001]
[1753329564012,37.12,190.3,190.27,3.97593001]
[1753329564198,37.8,190.3,190.26,3.97593001]
[1753329564404,0.68,190.29,190.25,3.97593001]
[1753329564606,0.68,190.28,190.24,3.97593001]
[1753329564814,41.09593001,190.3,190.24,3.97593001]
[1753329565114,0.68,190.27,190.24,3.97593001]
[1753329565319,0.68,190.27,190.25,3.97593001]
[1753329565702,0.68,190.27,190.22,5.25705466]
[1753329565703,5.25516502,190.29,190.23,5.25676996]
[1753329565905,5.25516502,190.29,190.25,3.97593001]
[1753329566106,0.68,190.28,190.25,3.97593001]
[1753329567036,43.05494253,190.3,190.25,3.97593001]
[1753329567235,42.37494253,190.3,190.25,3.97593001]
[1753329567531,0.68,190.29,190.25,3.97593001]
[1753329568610,42.37494253,190.3,190.25,3.97593001]
[1753329568812,0.68,190.28,190.25,3.97593001]
[1753329569532,0.68,190.27,190.23,3.97593001]
[1753329569731,0.68,190.26,190.23,3.97593001]
[1753329570027,37.62523767,190.25,190.2,4.03593001]
[1753329570220,37.62523767,190.25,190.24,0.06]
[1753329570525,41.60116768,190.25,190.24,0.06]
[1753329570735,42.28116768,190.25,190.24,0.06]
[1753329571340,37.78,190.25,190.24,0.06]
[1753329572212,43.03624178,190.25,190.24,0.06]
[1753329572813,37.1,190.25,190.24,0.06]
[1753329574033,43.03624178,190.25,190.24,0.06]
[1753329574626,47.01217179,190.25,190.24,0.06]
[1753329574811,26.0,190.22,190.21,0.06]
[1753329575008,67.07593001,190.22,190.21,0.06]
[1753329575404,67.75593001,190.22,190.21,0.06]
[1753329576605,63.1,190.22,190.21,0.06]
[1753329577010,68.35707076,190.22,190.21,0.06]
[1753329577506,63.1,190.22,190.21,0.06]
[1753329578820,68.35707076,190.22,190.21,0.06]
[1753329579032,69.03707076,190.22,190.21,0.06]
[1753329579230,73.01300077,190.22,190.21,0.06]
[1753329583926,68.37707076,190.22,190.21,0.06]
[1753329584129,69.05707076,190.22,190.21,0.06]
[1753329584331,69.58230843,190.22,190.21,0.06]
[1753329584531,0.52523767,190.25,190.21,4.03593001]
[1753329584732,37.12,190.24,190.21,4.03593001]
[1753329584935,37.12,190.24,190.21,0.06]
[1753329585131,43.0565277,190.24,190.21,4.03593001]
[1753329585538,0.68,190.23,190.21,0.06]
[1753329585737,41.17593001,190.22,190.21,0.06]
[1753329586246,41.85593001,190.22,190.21,0.06]
[1753329587538,47.11300077,190.22,190.21,0.06]
[1753329587740,48.75450077,190.22,190.21,1e-08]
[1753329588247,48.75450077,190.22,190.2,1e-08]
[1753329588427,9.15709769,190.21,190.2,1e-08]
[1753329588628,26.0,190.18,190.16,1e-08]
[1753329588827,41.70116768,190.17,190.16,1e-08]
[1753329589041,42.38116768,190.17,190.16,1e-08]
[1753329589558,47.63962064,190.17,190.16,1e-08]
[1753329590634,47.65962064,190.17,190.16,1e-08]
[1753329590832,5.25822803,190.18,190.16,1e-08]
[1753329591026,0.52523767,190.22,190.17,3.97593001]
[1753329591227,0.52523767,190.22,190.18,3.97593001]
[1753329591228,37.24,190.21,190.18,3.97593001]
[1753329591435,37.24,190.21,190.17,3.97593001]
[1753329591833,42.49736046,190.21,190.16,1e-08]
[1753329592039,5.20116768,190.2,190.16,1e-08]
[1753329592244,3.97593001,190.18,190.16,1e-08]
[1753329592445,37.76523767,190.17,190.16,1e-08]
[1753329592641,38.46523767,190.17,190.16,1e-08]
[1753329593737,43.72369063,190.17,190.16,1e-08]
[1753329594533,42.49845296,190.17,190.16,1e-08]
[1753329594829,37.24,190.17,190.16,1e-08]
[1753329597069,37.24,190.17,190.16,5.8480942]
[1753329597239,37.24,190.17,190.16,1e-08]
[1753329598856,37.24,190.18,190.16,1e-08]
[1753329599634,37.24,190.19,190.17,6.51809419]
[1753329599934,37.22,190.21,190.16,1e-08]
[1753329600165,37.22,190.21,190.18,5.84809419]
[1753329601927,37.22,190.21,190.18,6.51809419]
[1753329603054,37.22,190.21,190.19,5.84809419]
[1753329603243,1.22523767,190.24,190.2,5.84809419]
[1753329603441,5.78171426,190.25,190.22,5.84809419]
[1753329603641,37.22,190.24,190.22,5.84809419]
[1753329603960,37.22,190.24,190.21,0.67]
[1753329604142,37.22,190.24,190.23,5.84809419]
[1753329604540,0.03,190.29,190.23,6.51809419]
[1753329604748,37.22,190.28,190.26,5.84809419]
[1753329605037,37.22,190.28,190.27,5.84809419]
[1753329605640,0.03,190.29,190.27,6.51809419]
[1753329605848,0.03,190.29,190.28,6.51809419]
[1753329606764,0.03,190.29,190.28,11.77350726]
[1753329607941,0.03,190.29,190.28,22.71009704]
[1753329608268,0.03,190.29,190.28,30.69663253]
[1753329608761,0.03,190.33,190.28,43.83516521]
[1753329608948,0.03,190.33,190.32,5.84809419]
[1753329609664,0.03,190.33,190.32,6.51809419]
[1753329610369,0.03,190.33,190.32,11.77240272]
[1753329611462,0.03,190.33,190.32,6.51809419]
[1753329611660,0.03,190.33,190.29,0.67]
[1753329611857,0.03,190.33,190.32,5.84809419]
[1753329613870,0.03,190.33,190.32,6.51809419]
[1753329614371,0.03,190.33,190.29,5.25513229]
[1753329614570,0.03,190.33,190.31,5.84809419]
[1753329615146,0.03,190.33,190.32,5.84809419]
[1753329616370,0.03,190.33,190.32,6.51809419]
[1753329616775,0.03,190.33,190.32,5.84809419]
[1753329618569,0.03,190.33,190.32,11.77240272]
[1753329618956,0.03,190.33,190.32,116.75708669]
[1753329624171,0.03,190.33,190.32,153.87708669]
[1753329624473,0.03,190.33,190.32,160.47378669]
[1753329627158,0.03,190.33,190.32,88.2]
[1753329627358,0.73,190.33,190.32,88.2]
[1753329627580,0.73,190.33,190.28,130.61533936]
[1753329627872,0.03,190.33,190.32,3.97727641]
[1753329628261,0.03,190.33,190.32,4.64727641]
[1753329628461,0.03,190.33,190.32,47.06158494]
[1753329628859,0.03,190.33,190.32,64.37169976]
[1753329629267,0.03,190.33,190.32,66.2262976]
[1753329630477,0.03,190.33,190.32,65.03086675]
[1753329630862,0.03,190.33,190.3,88.87]
[1753329630863,0.73,190.33,190.3,94.03187425]
[1753329631188,0.73,190.33,190.3,42.99187425]
[1753329631365,0.73,190.33,190.3,5.83187425]
[1753329631560,0.7,190.32,190.29,37.16]
[1753329631893,0.7,190.32,190.28,5.2553673]
[1753329631894,6.53187425,190.31,190.25,5.83187425]
[1753329632077,5.83187425,190.31,190.25,5.83187425]
[1753329632385,6.53187425,190.3,190.25,5.83187425]
[1753329632562,26.55523767,190.33,190.24,37.18]
[1753329632563,6.53187425,190.29,190.24,37.18]
[1753329632765,0.7,190.28,190.24,37.18]
[1753329632976,6.53187425,190.28,190.23,5.83187425]
[1753329633290,0.7,190.27,190.23,5.83187425]
[1753329633861,0.7,190.27,190.24,5.83187425]
[1753329634762,0.7,190.29,190.25,5.83187425]
[1753329634961,0.7,190.29,190.23,0.67]
[1753329635577,0.7,190.29,190.25,0.06]
[1753329635770,0.7,190.28,190.25,0.06]
[1753329635969,0.7,190.28,190.25,5.89187425]
[1753329636490,5.95547666,190.28,190.25,0.06]
[1753329636667,0.7,190.27,190.25,0.06]
[1753329637985,5.95520907,190.29,190.25,5.89187425]
[1753329638182,5.25520907,190.29,190.25,5.89187425]
[1753329638388,0.7,190.28,190.25,5.89187425]
[1753329638575,11.78680709,190.3,190.25,5.89187425]
[1753329638776,0.7,190.29,190.25,5.89187425]
[1753329638976,11.08680709,190.3,190.25,5.89187425]
[1753329639172,0.7,190.28,190.25,5.89187425]
[1753329639589,0.7,190.27,190.25,5.89187425]
[1753329639893,5.95518911,190.29,190.25,5.89187425]
[1753329640267,0.7,190.29,190.25,5.89187425]
[1753329640484,0.7,190.29,190.26,5.83187425]
[1753329640992,0.7,190.28,190.26,5.83187425]
[1753329641380,31.7803426,190.3,190.26,5.83187425]
[1753329641689,0.7,190.29,190.26,5.83187425]
[1753329642067,26.52523767,190.3,190.28,5.83187425]
[1753329642272,26.52523767,190.3,190.26,5.25595352]
[1753329642273,26.0,190.3,190.29,5.83187425]
[1753329642596,0.73,190.33,190.29,5.83187425]
[1753329642784,0.03,190.33,190.32,5.83187425]
[1753329642985,0.03,190.33,190.32,6.50187425]
[1753329643187,0.03,190.33,190.32,23.28655822]
[1753329644295,0.03,190.33,190.32,28.54086675]
[1753329644981,0.03,190.33,190.32,22.7089925]
[1753329645181,0.03,190.33,190.32,5.83187425]
[1753329645720,0.03,190.33,190.3,37.14]
[1753329645879,0.7,190.32,190.26,5.25596552]
[1753329646086,0.7,190.32,190.29,5.83187425]
[1753329646388,0.7,190.31,190.29,5.83187425]
[1753329646974,11.64131644,190.33,190.27,5.83187425]
[1753329647174,26.7,190.3,190.26,5.83187425]
[1753329647386,0.7,190.29,190.26,5.83187425]
[1753329647585,26.0,190.3,190.26,5.83187425]
[1753329647784,0.7,190.28,190.26,5.83187425]
[1753329648020,0.7,190.28,190.25,43.05187425]
[1753329648204,5.95554313,190.28,190.25,5.89187425]
[1753329648400,0.7,190.27,190.25,5.89187425]
[1753329648718,26.52523767,190.3,190.25,5.89187425]
[1753329648909,0.7,190.29,190.25,0.06]
[1753329649213,0.7,190.29,190.25,5.89187425]
[1753329649801,0.7,190.29,190.26,5.83187425]
[1753329650490,5.95527789,190.29,190.26,5.83187425]
[1753329650690,5.25527789,190.29,190.26,5.83187425]
[1753329651104,26.0,190.29,190.28,5.83187425]
[1753329652988,0.7,190.31,190.28,5.83187425]
[1753329653183,26.0,190.3,190.29,5.83187425]
[1753329656706,26.0,190.3,190.26,5.25592615]
[1753329656707,26.0,190.3,190.28,5.83187425]
[1753329657227,0.71,190.29,190.27,5.83187425]
[1753329657829,5.25487339,190.3,190.26,5.83187425]
[1753329658005,0.71,190.29,190.26,5.83187425]
[1753329658895,5.83187425,190.27,190.25,0.06]
[1753329659112,0.71,190.26,190.25,0.06]
[1753329659507,5.96596552,190.26,190.25,0.06]
[1753329660225,11.61249802,190.29,190.25,0.06]
[1753329660434,0.03,190.3,190.28,5.83187425]
[1753329660597,26.0,190.29,190.27,5.83187425]
[1753329660797,26.71,190.29,190.27,5.83187425]
[1753329660998,26.71,190.29,190.25,0.06]
[1753329660999,6.54187425,190.28,190.25,0.06]
[1753329661532,5.25568928,190.27,190.25,0.06]
[1753329661702,5.96568928,190.27,190.25,0.06]
[1753329661897,0.71,190.26,190.25,0.06]
[1753329662329,0.71,190.27,190.25,0.06]
[1753329663630,0.71,190.26,190.25,0.06]
[1753329664439,5.96547792,190.28,190.25,0.06]
[1753329664812,26.0,190.28,190.27,5.83187425]
[1753329665222,26.71,190.28,190.25,5.89187425]
[1753329665420,0.71,190.27,190.25,0.06]
[1753329665943,26.0,190.28,190.25,0.06]
[1753329665944,7.06711192,190.26,190.25,0.06]
[1753329666235,50.75191192,190.26,190.25,0.06]
[1753329666414,52.40411192,190.26,190.25,0.06]
[1753329667016,57.66007744,190.26,190.25,0.06]
[1753329668840,51.09527744,190.26,190.25,0.06]
[1753329669136,45.26340319,190.26,190.25,0.06]
[1753329669346,70.73816552,190.26,190.25,0.06]
[1753329670336,63.83,190.26,190.25,0.06]
[1753329670536,63.12,190.26,190.25,0.06]
[1753329670725,63.83,190.26,190.25,0.06]
[1753329670928,69.08596552,190.26,190.25,0.06]
[1753329671358,63.83,190.26,190.25,0.06]
[1753329671930,63.12,190.26,190.25,0.06]
[1753329673027,63.83,190.26,190.25,0.06]
[1753329673237,0.71,190.29,190.25,5.89187425]
[1753329673575,0.03,190.3,190.28,5.83187425]
[1753329673740,26.0,190.29,190.28,5.83187425]
[1753329674418,26.0,190.29,190.27,5.83187425]
[1753329674625,26.71,190.29,190.26,5.83187425]
[1753329675118,0.71,190.28,190.25,0.06]
[1753329675320,0.71,190.27,190.25,0.06]
[1753329678231,0.71,190.26,190.25,0.06]
[1753329678425,33.06711192,190.26,190.25,0.06]
[1753329678841,27.23523767,190.26,190.25,0.06]
[1753329679046,32.49120319,190.26,190.25,0.06]
[1753329679758,38.32307744,190.26,190.25,0.06]
[1753329680059,51.46299124,190.26,190.18,0.06]
[1753329680242,5.83187425,190.21,190.18,0.06]
[1753329680443,42.95187425,190.21,190.18,0.06]
[1753329680643,43.66187425,190.21,190.18,0.06]
[1753329680843,37.83,190.21,190.18,0.06]
[1753329681250,37.12,190.21,190.18,5.89187425]
[1753329681640,26.0,190.21,190.2,5.83187425]
[1753329683941,26.0,190.21,190.19,5.83187425]
[1753329684136,26.0,190.21,190.18,5.89187425]
[1753329684355,0.71,190.2,190.18,0.06]
[1753329685844,26.0,190.21,190.18,0.06]
[1753329686036,26.0,190.21,190.18,5.89187425]
[1753329687069,0.71,190.2,190.18,0.06]
[1753329688853,26.0,190.21,190.18,0.06]
[1753329689347,26.71,190.21,190.18,0.06]
[1753329689744,0.71,190.2,190.18,0.06]
[1753329690243,0.71,190.19,190.18,0.06]
[1753329690647,1.23523767,190.24,190.18,5.89187425]
[1753329690861,64.35523767,190.23,190.19,5.83187425]
[1753329691163,6.54187425,190.22,190.18,0.06]
[1753329691351,0.52523767,190.21,190.18,0.06]
[1753329691554,0.71,190.2,190.18,0.06]
[1753329692558,0.71,190.22,190.18,5.89187425]
[1753329693159,0.71,190.22,190.18,0.06]
[1753329693341,0.71,190.21,190.18,0.06]
[1753329694162,63.12,190.23,190.19,5.83187425]
[1753329694546,63.12,190.23,190.19,11.08971524]
[1753329694941,63.83,190.23,190.19,5.83187425]
[1753329695157,63.83,190.23,190.19,3.9843876]
[1753329695440,63.12,190.23,190.19,3.9843876]
[1753329695639,0.71,190.22,190.19,3.9843876]
[1753329695840,63.12,190.23,190.19,3.9843876]
[1753329696036,63.83,190.23,190.19,3.9843876]
[1753329696470,63.83,190.23,190.18,5.3180952]
[1753329696640,63.83,190.23,190.19,3.9843876]
[1753329697452,63.12,190.23,190.19,3.9843876]
[1753329697745,63.12,190.23,190.18,0.06]
[1753329697746,1.23523767,190.22,190.18,0.06]
[1753329698064,37.12,190.21,190.18,0.06]
[1753329698368,37.83,190.21,190.18,0.06]
[1753329698578,0.71,190.2,190.18,0.06]
[1753329698761,37.83,190.21,190.18,4.0443876]
[1753329700853,26.0,190.21,190.2,3.9843876]
[1753329701246,37.12,190.24,190.2,4.6543876]
[1753329701444,37.83,190.24,190.21,3.9843876]
[1753329701645,0.71,190.23,190.19,3.9843876]
[1753329701845,0.52523767,190.22,190.18,0.06]
[1753329702054,4.50962527,190.22,190.18,0.06]
[1753329702378,0.71,190.21,190.18,0.06]
[1753329702861,0.71,190.2,190.18,0.06]
[1753329703060,4.6943876,190.2,190.18,0.06]
[1753329703271,6.49299446,190.2,190.18,0.06]
[1753329703472,4.6943876,190.19,190.18,0.06]
[1753329704672,0.71,190.19,190.18,0.06]
[1753329704871,9.95228759,190.19,190.18,0.06]
[1753329707872,5.96789999,190.19,190.18,0.06]
[1753329708064,9.95228759,190.19,190.18,0.06]
[1753329709378,5.96789999,190.19,190.18,0.06]
[1753329709556,26.0,190.15,190.14,0.06]
[1753329709750,67.1043876,190.15,190.14,0.06]
[1753329709950,67.8143876,190.15,190.06,6.98101365]
[1753329710158,26.0,190.11,190.06,2.99662605]
[1753329710452,3.9843876,190.07,190.06,2.99662605]
[1753329710654,38.35523767,190.07,190.06,2.99662605]
[1753329710877,0.52523767,190.07,190.06,2.99662605]
[1753329711053,0.52523767,190.09,190.06,6.98101365]
[1753329711255,31.97042868,190.1,190.06,2.99662605]
[1753329711256,69.67566635,190.1,190.06,2.99662605]
[1753329711576,29.9843876,190.07,190.06,2.99662605]
[1753329711887,29.9843876,190.07,189.93,0.7]
[1753329711888,26.0,190.03,189.93,0.7]
[1753329712055,16.78468397,190.06,189.95,3.9843876]
[1753329712056,26.0,189.99,189.95,3.9843876]
[1753329712367,26.0,189.99,189.93,0.7]
[1753329712368,67.80962527,189.99,189.94,3.9843876]
[1753329712563,67.80962527,189.99,189.94,0.7]
[1753329712797,63.3,189.99,189.95,4.6843876]
[1753329713089,0.52523767,189.98,189.92,0.7]
[1753329713395,5.85950772,189.94,189.88,0.7]
[1753329713559,5.85950772,189.91,189.86,5.85950772]
[1753329713879,5.85950772,189.91,189.86,0.7]
[1753329714060,31.85950772,189.89,189.84,5.85950772]
[1753329714250,31.85950772,189.89,189.81,5.26842632]
[1753329714251,26.0,189.89,189.81,5.26842632]
[1753329714450,1.10523767,189.91,189.8,88.2]
[1753329714451,2.13333767,189.98,189.88,5.26648409]
[1753329714657,5.85950772,189.92,189.83,0.7]
[1753329714978,5.85950772,189.89,189.83,6.55950772]
[1753329715275,37.90523767,189.91,189.85,5.85950772]
[1753329715474,43.23950772,189.91,189.86,5.85950772]
[1753329715657,37.38,189.91,189.87,5.85950772]
[1753329715855,6.43950772,189.93,189.8,132.68398312]
[1753329715856,37.4,189.93,189.9,5.85950772]
[1753329716174,37.4,189.93,189.84,16.78468397]
[1753329716375,37.4,189.93,189.9,5.85950772]
[1753329716584,5.85950772,189.91,189.85,5.2673163]
[1753329716757,5.85950772,189.91,189.86,5.85950772]
[1753329716958,26.67,189.9,189.85,11.12682402]
[1753329717172,0.67,189.89,189.85,5.2673163]
[1753329717485,5.85950772,189.87,189.81,0.7]
[1753329717660,6.38474539,189.87,189.81,5.85950772]
[1753329717861,6.38474539,189.87,189.79,0.7]
[1753329717862,43.45950772,189.86,189.79,0.7]
[1753329718083,0.52523767,189.85,189.79,0.7]
[1753329718266,1.19523767,189.85,189.8,5.85950772]
[1753329718457,0.67,189.84,189.77,5.2695368]
[1753329718662,0.52523767,189.83,189.78,5.85950772]
[1753329718857,0.67,189.82,189.78,5.85950772]
[1753329719081,0.67,189.82,189.77,5.2695368]
[1753329719082,26.67,189.81,189.77,5.2695368]
[1753329719268,26.0,189.79,189.73,5.27064776]
[1753329719578,0.52523767,189.81,189.78,5.85950772]
[1753329719579,64.16523767,189.81,189.78,5.85950772]
[1753329719756,63.64,189.81,189.79,5.85950772]
[1753329720259,37.66,189.83,189.8,5.85950772]
[1753329720458,10.0,189.96,189.75,16.78468397]
[1753329720459,0.52523767,189.88,189.83,5.26787125]
[1753329720659,38.18523767,189.89,189.87,5.85950772]
[1753329720878,37.66,189.89,189.84,0.7]
[1753329721080,5.85950772,189.87,189.78,0.7]
[1753329721288,5.85950772,189.83,189.78,5.85950772]
[1753329721458,27.19523767,189.86,189.76,5.85950772]
[1753329721459,5.85950772,189.81,189.76,5.85950772]
[1753329721654,5.85950772,189.81,189.73,37.66]
[1753329721655,5.85950772,189.78,189.73,5.85950772]
[1753329721853,1.19523767,189.77,189.7,0.06]
[1753329722062,43.51950772,189.76,189.7,11.19097378]
[1753329722284,0.52523767,189.75,189.71,5.85950772]
[1753329722492,1.19523767,189.75,189.7,0.06]
[1753329722786,6.52950772,189.74,189.7,0.06]
[1753329722985,0.52523767,189.73,189.7,0.06]
[1753329723185,0.67,189.73,189.7,5.91950772]
[1753329723488,37.68,189.76,189.72,5.85950772]
[1753329723667,0.52523767,189.79,189.75,5.85950772]
[1753329723869,8.0391,189.82,189.75,5.85950772]
[1753329723870,37.7,189.82,189.78,5.85950772]
[1753329724184,37.7,189.82,189.72,0.7]
[1753329724380,0.67,189.85,189.81,5.85950772]
[1753329724564,38.26523767,189.86,189.83,5.85950772]
[1753329724772,1.19523767,189.88,189.85,5.85950772]
[1753329724968,0.52523767,189.88,189.85,5.85950772]
[1753329725489,48.11332923,189.89,189.87,5.85950772]
[1753329726176,48.11332923,189.89,189.86,5.85950772]
[1753329726489,48.11332923,189.89,189.84,5.85950772]
[1753329726490,1.69523767,189.88,189.84,5.85950772]
[1753329726686,1.69523767,189.88,189.85,5.85950772]
[1753329727567,1.02523767,189.88,189.86,5.85950772]
[1753329727870,0.5,189.88,189.86,5.85950772]
[1753329728688,0.5,189.88,189.79,13.17180967]
[1753329728896,0.5,189.88,189.85,5.85950772]
[1753329729075,0.5,189.88,189.86,5.85950772]
[1753329730391,0.5,189.88,189.87,5.85950772]
[1753329730574,10.37332923,189.89,189.87,5.85950772]